Workbook

Sheet Profile
A1: o"kZ 2020&2021 ds fy, jsUt ds vuqlkj laosru dh jkf'k | F1: OID | G1: 2405 | O1: BE 2020-21
A2: dk;kZy; %& | D2: jktdh; mPp ek/;fed fo|ky; 15tSM ¼Jhxaxkuxj½ | K2: Iyku 01 | M2: 2020&2021 | O2: RE 2019-20
A3: ys[kk 'kh"kZd ¼foLr`r 'kh"kZ½ | B3: Øe la[;k | C3: uke | E3: deZpkjh vkbZ Mh | F3: thih,Q @ ,uih,l uEcj | G3: in | H3: in dk Lohd`r osru | J3: ctV dh izkjfEHkd frfFk ;kfu 1ekpZ2020 dks deZpkjh dk osru | K3: igyh ekpZ ls vfUre Qjojh ds fy;s fu/kkZfjr jde | L3: o`f) tks bl vof/k esa gksxh | N3: vkxkeh o"kZ 2020&21 ds fy;s jde ¼dkye 10$12½ | O3: pkyw o"kZ 19&20 ds fy;s la'kksf/kr vuqeku | P3: fo'ks"k fooj.k | R3: vkxkeh osru o`f) fnukad
H4: xzsM is@ysoy | L4: frfFk o`f) | M4: jde o`f) | R4: 2020-07-01
A5: 1 | B5: 2 | D5: 3 | E5: 4 | F5: 5 | G5: 6 | H5: 7 | I5: 8 | J5: 9 | K5: 10 | L5: 11 | M5: 12 | N5: 13 | O5: 14 | P5: 15
A6: jktif=r | B6: 1 | C6: Jh | D6: izHkkr 'kekZ | E6: RJGA198635002357 | F6: 543895 | G6: iz/kkukpk;Z | H6: ysoy | I6: 16 | J6: 98800 | K6: =J6*12 -> 1185600 | L6: =R4 -> 2020-07-01 | M6: =P6*8 -> 24000 | N6: =K6+M6 -> 1209600 | O6: =N6-P6*12 -> 1173600 | P6: =S6 -> 3000 | S6: =ROUND(T6,-2) -> 3000 | T6: =J6*3/100 -> 2964 | U6: =X6-W6 -> 98784 | V6: =IF(R4>=DATE(2013,7,1),CEILING(X6*3%,10)+U6,U6) -> 101754 | W6: =I6 -> 16 | X6: =J6 -> 98800 | Y6: =SUM(V6:W6) -> 101770 | Z6: =Y6-X6 -> 2970 | AB6: =J6 -> 98800 | AC6: =AB6*3/100 -> 2964 | AD6: =ROUNDUP(AC6,-1) -> 2970 | AE6: =AB6+AD6 -> 101770 | AH6: =AE6-J6 -> 2970
A7: jktif=r | B7: 1 | C7: Jh | D7: ujsUnz dqekj foukspk | E7: RJGA199135024621 | F7: 675687 | G7: O;k[;krk | H7: ysoy | I7: 13 | J7: 75600 | K7: 907200 | L7: =L6 -> 2020-07-01 | M7: =P7*8 -> 18400 | N7: =K7+M7 -> 925600 | O7: =N7-P7*12 -> 898000 | P7: =S7 -> 2300 | S7: 2300 | T7: 2268 | U7: =X7-W7 -> 75587 | V7: =IF(R4>=DATE(2013,7,1),CEILING(X7*3%,10)+U7,U7) -> 77857 | W7: =I7 -> 13 | X7: =J7 -> 75600 | Y7: =SUM(V7:W7) -> 77870 | Z7: =Y7-X7 -> 2270 | AB7: =J7 -> 75600 | AC7: =AB7*3/100 -> 2268 | AD7: =ROUNDUP(AC7,-1) -> 2270 | AE7: =AB7+AD7 -> 77870 | AH7: =AE7-J7 -> 2270
A8: jktif=r | B8: 2 | C8: Jherh | D8: lquhrk jkuh | E8: RJGA198835003633 | F8: 617735 | G8: O;k[;krk | H8: ysoy | I8: 13 | J8: 73400 | K8: 880800 | L8: =L7 -> 2020-07-01 | M8: 17600 | N8: 898400 | O8: =N8-P8*12 -> 872000 | P8: 2200 | S8: 2200 | T8: 2202 | U8: 73387 | V8: =IF(R4>=DATE(2013,7,1),CEILING(X8*3%,10)+U8,U8) -> 75597 | W8: 13 | X8: 73400 | Y8: 75610 | Z8: 2210 | AB8: 73400 | AC8: 2202 | AD8: 2210 | AE8: 75610 | AH8: 2210
A9: jktif=r | B9: 3 | C9: Jh | D9: lqjsUnz flag xzksoj | E9: RJGA199935003208 | F9: 965138 | G9: O;k[;krk | H9: ysoy | I9: 12 | J9: 69000 | K9: 828000 | L9: =L8 -> 2020-07-01 | M9: =P9*8 -> 16800 | N9: =K9+M9 -> 844800 | O9: 819600 | P9: 2100 | S9: 2100 | T9: 2070 | U9: 68988 | V9: =IF(R4>=DATE(2013,7,1),CEILING(X9*3%,10)+U9,U9) -> 71058 | W9: 12 | X9: 69000 | Y9: 71070 | Z9: 2070 | AB9: 69000 | AC9: 2070 | AD9: 2070 | AE9: 71070 | AH9: 2070
A10: jktif=r | B10: 4 | G10: O;k[;krk | H10: ysoy | I10: 12 | J10: 0 | K10: 0 | L10: 2020-07-01 | M10: 0 | N10: 0 | O10: 0 | P10: 0 | S10: 0 | T10: 0 | U10: -12 | V10: =IF(R4>=DATE(2013,7,1),CEILING(X10*3%,10)+U10,U10) -> -12 | W10: 12 | X10: 0 | Y10: 0 | Z10: =Y10-X10 -> 0 | AB10: 0 | AC10: 0 | AD10: 0 | AE10: 0 | AH10: 0
A11: jktif=r | B11: 5 | G11: O;k[;krk | H11: ysoy | I11: 12 | J11: 0 | K11: 0 | L11: 2020-07-01 | M11: 0 | N11: 0 | O11: 0 | P11: 0 | S11: 0 | T11: 0 | U11: -12 | V11: =IF(R4>=DATE(2013,7,1),CEILING(X11*3%,10)+U11,U11) -> -12 | W11: 12 | X11: =J11 -> 0 | Y11: =SUM(V11:W11) -> 0 | Z11: 0 | AB11: 0 | AC11: 0 | AD11: 0 | AE11: 0 | AH11: 0
A12: jktif=r | B12: 6 | G12: O;k[;krk | H12: ysoy | I12: 12 | J12: 0 | K12: 0 | L12: 2020-07-01 | M12: 0 | N12: 0 | O12: 0 | P12: 0 | S12: 0 | T12: 0 | U12: =X12-W12 -> -12 | V12: =IF(R4>=DATE(2013,7,1),CEILING(X12*3%,10)+U12,U12) -> -12 | W12: =I12 -> 12 | X12: 0 | Y12: 0 | Z12: 0 | AB12: 0 | AC12: 0 | AD12: 0 | AE12: 0 | AH12: 0
A13: vjktif=r | B13: 1 | G13: ofj"B v/;kid | H13: ysoy | I13: 11 | J13: 0 | K13: 0 | L13: 2020-07-01 | M13: 0 | N13: 0 | O13: 0 | P13: 0 | S13: 0 | T13: 0 | U13: -11 | V13: =IF(R4>=DATE(2013,7,1),CEILING(X13*3%,10)+U13,U13) -> -11 | W13: 11 | X13: 0 | Y13: 0 | Z13: 0 | AB13: 0 | AC13: 0 | AD13: 0 | AE13: 0 | AH13: 0
A14: vjktif=r | B14: 2 | G14: ofj"B v/;kid | H14: ysoy | I14: 11 | J14: 0 | K14: 0 | L14: 2020-07-01 | M14: 0 | N14: 0 | O14: 0 | P14: 0 | S14: 0 | T14: 0 | U14: -11 | V14: =IF(R4>=DATE(2013,7,1),CEILING(X14*3%,10)+U14,U14) -> -11 | W14: 11 | X14: 0 | Y14: 0 | Z14: 0 | AB14: 0 | AC14: 0 | AD14: 0 | AE14: 0 | AH14: 0
A15: vjktif=r | B15: 3 | G15: ofj"B v/;kid | H15: ysoy | I15: 11 | J15: 0 | K15: 0 | L15: 2020-07-01 | M15: 0 | N15: 0 | O15: 0 | P15: 0 | S15: 0 | T15: 0 | U15: -11 | V15: =IF(R4>=DATE(2013,7,1),CEILING(X15*3%,10)+U15,U15) -> -11 | W15: 11 | X15: 0 | Y15: 0 | Z15: 0 | AB15: 0 | AC15: 0 | AD15: 0 | AE15: 0 | AH15: 0
A16: vjktif=r | B16: 4 | G16: ofj"B v/;kid | H16: ysoy | I16: 11 | J16: 0 | K16: 0 | L16: 2020-07-01 | M16: 0 | N16: 0 | O16: 0 | P16: 0 | S16: 0 | T16: 0 | U16: =X16-W16 -> -11 | V16: =IF(R4>=DATE(2013,7,1),CEILING(X16*3%,10)+U16,U16) -> -11 | W16: 11 | X16: 0 | Y16: =SUM(V16:W16) -> 0 | Z16: 0 | AB16: 0 | AC16: 0 | AD16: 0 | AE16: 0 | AH16: 0
A17: vjktif=r | B17: 5 | G17: ofj"B v/;kid | H17: ysoy | I17: 11 | J17: 0 | K17: 0 | L17: 2020-07-01 | M17: 0 | N17: 0 | O17: 0 | P17: 0 | S17: 0 | T17: 0 | U17: =X17-W17 -> -11 | V17: =IF(R4>=DATE(2013,7,1),CEILING(X17*3%,10)+U17,U17) -> -11 | W17: 11 | X17: 0 | Y17: =SUM(V17:W17) -> 0 | Z17: 0 | AB17: 0 | AC17: 0 | AD17: 0 | AE17: 0 | AH17: 0
A18: vjktif=r | B18: 6 | G18: ofj"B v/;kid | H18: ysoy | I18: 11 | J18: 0 | K18: 0 | L18: 2020-07-01 | M18: 0 | N18: 0 | O18: 0 | P18: 0 | S18: 0 | T18: 0 | U18: =X18-W18 -> -11 | V18: =IF(R4>=DATE(2013,7,1),CEILING(X18*3%,10)+U18,U18) -> -11 | W18: 11 | X18: 0 | Y18: =SUM(V18:W18) -> 0 | Z18: 0 | AB18: 0 | AC18: 0 | AD18: 0 | AE18: 0 | AH18: 0
A19: vjktif=r | B19: a1 | C19: Jh | D19: jkts'k dqekj | E19: RJGA199635005048 | F19: 749033 | G19: v/;kid ysoy&k | H19: ysoy | I19: 12 | J19: 61300 | K19: 735600 | L19: 2020-07-01 | M19: 14400 | N19: 750000 | O19: 728400 | P19: 1800 | S19: 1800 | T19: 1839 | U19: =X19-W19 -> 61288 | V19: =IF(R4>=DATE(2013,7,1),CEILING(X19*3%,10)+U19,U19) -> 63128 | W19: 12 | X19: 61300 | Y19: =SUM(V19:W19) -> 63140 | Z19: =Y19-X19 -> 1840 | AB19: 61300 | AC19: 1839 | AD19: 1840 | AE19: 63140 | AH19: 1840
A20: vjktif=r | B20: 2 | G20: v/;kid | H20: ysoy | I20: 10 | J20: 0 | K20: 0 | L20: 2020-07-01 | M20: 0 | N20: 0 | O20: 0 | P20: 0 | S20: 0 | T20: 0 | U20: =X20-W20 -> -10 | V20: =IF(R4>=DATE(2013,7,1),CEILING(X20*3%,10)+U20,U20) -> -10 | W20: 10 | X20: 0 | Y20: =SUM(V20:W20) -> 0 | Z20: 0 | AB20: 0 | AC20: 0 | AD20: 0 | AE20: 0 | AH20: 0
A21: vjktif=r | B21: 3 | G21: v/;kid | H21: ysoy | I21: 10 | J21: 0 | K21: =J21*12 -> 0 | L21: 2020-07-01 | M21: =P21*8 -> 0 | N21: =K21+M21 -> 0 | O21: =N21-P21*12 -> 0 | P21: 0 | S21: 0 | T21: 0 | U21: =X21-W21 -> -10 | V21: =IF(R4>=DATE(2013,7,1),CEILING(X21*3%,10)+U21,U21) -> -10 | W21: =I21 -> 10 | X21: =J21 -> 0 | Y21: =SUM(V21:W21) -> 0 | Z21: =Y21-X21 -> 0 | AB21: =J21 -> 0 | AC21: =AB21*3/100 -> 0 | AD21: =ROUNDUP(AC21,-1) -> 0 | AE21: =AB21+AD21 -> 0 | AH21: =AE21-J21 -> 0
A22: vjktif=r | B22: 1 | G22: dk;kZy; lgk;d | H22: ysoy | I22: 10 | J22: 0 | K22: 0 | L22: 2020-07-01 | M22: 0 | N22: 0 | O22: 0 | P22: 0 | S22: 0 | T22: 0 | U22: -10 | V22: =IF(R4>=DATE(2013,7,1),CEILING(X22*3%,10)+U22,U22) -> -10 | W22: 10 | X22: 0 | Y22: 0 | Z22: 0 | AB22: 0 | AC22: 0 | AD22: 0 | AE22: 0 | AH22: 0
A23: vjktif=r | B23: 1 | G23: ofj"B fyfid | H23: ysoy | I23: 8 | J23: 0 | K23: 0 | L23: 2020-07-01 | M23: 0 | N23: 0 | O23: 0 | P23: 0 | S23: 0 | T23: 0 | U23: -8 | V23: =IF(R4>=DATE(2013,7,1),CEILING(X23*3%,10)+U23,U23) -> -8 | W23: 8 | X23: 0 | Y23: 0 | Z23: 0 | AB23: 0 | AC23: 0 | AD23: 0 | AE23: 0 | AH23: 0
A24: vjktif=r | B24: 1 | C24: Jh | D24: dqynhi dqekj | E24: RJGA201535003030 | F24: 110182269120 | G24: dfu"B lgk;d | H24: ysoy | I24: 5 | J24: 22000 | K24: 264000 | L24: 2020-07-01 | M24: 5600 | N24: 269600 | O24: 261200 | P24: 700 | S24: 700 | T24: 660 | U24: 21995 | V24: =IF(R4>=DATE(2013,7,1),CEILING(X24*3%,10)+U24,U24) -> 22655 | W24: 5 | X24: 22000 | Y24: 22660 | Z24: 660 | AB24: 22000 | AC24: 660 | AD24: 660 | AE24: 22660 | AH24: 660
A25: vjktif=r | B25: 1 | G25: lgk;d deZpkjh | H25: ysoy | I25: 1 | J25: 0 | K25: 0 | L25: 2020-07-01 | M25: 0 | N25: 0 | O25: 0 | P25: 0 | S25: 0 | T25: 0 | U25: -1 | V25: =IF(R4>=DATE(2013,7,1),CEILING(X25*3%,10)+U25,U25) -> -1 | W25: 1 | X25: 0 | Y25: 0 | Z25: 0 | AB25: 0 | AC25: 0 | AD25: 0 | AE25: 0 | AH25: 0
A26: vjktif=r | B26: 2 | G26: lgk;d deZpkjh | H26: ysoy | I26: 1 | J26: 0 | K26: 0 | L26: 2020-07-01 | M26: 0 | N26: 0 | O26: 0 | P26: 0 | S26: 0 | T26: 0 | U26: -1 | V26: =IF(R4>=DATE(2013,7,1),CEILING(X26*3%,10)+U26,U26) -> -1 | W26: 1 | X26: 0 | Y26: 0 | Z26: 0 | AB26: 0 | AC26: 0 | AD26: 0 | AE26: 0 | AH26: 0
B28: jktif=r ;ksx | J28: =J6+J7+J8+J9+J10+J11+J12 -> 316800 | K28: =K6+K7+K8+K9+K10+K11+K12 -> 3801600 | M28: 76800 | N28: =N6+N7+N8+N9+N10+N11+N12 -> 3878400 | O28: 3763200
B29: vjktif=r ;ksx | J29: =J13+J14+J15+J16+J17+J18+J19+J20+J21+J22+J23+J24+J25+J26 -> 83300 | K29: =K13+K14+K15+K16+K17+K18+K19+K20+K21+K22+K23+K24+K25+K26 -> 999600 | M29: 20000 | N29: 1019600 | O29: 989600
B30: ;ksx jktif=r$vjktif=r | J30: =J28+J29 -> 400100 | K30: =K28+K29 -> 4801200 | M30: =M28+M29 -> 96800 | N30: =N28+N29 -> 4898000 | O30: =O28+O29 -> 4752800
A31: 0.12 | B31: egaxkbZ HkRrk 12izfr'kr | N31: =ROUND(N30*A31,0) -> 587760 | O31: =ROUND(O30*A31,0) -> 570336 | R31: deZpkjh dh la[;k
B32: edku fdjk;k 8izfr'kr | N32: =ROUND(N30*8%,0) -> 391840 | O32: =ROUND(O30*8%,0) -> 380224
A33: 0 | B33: egaxkbZ HkRRkk ,sfj;j ¼----izfr'kr½ | O33: =ROUND((O30*2*A33)/12,0) -> 0
B34: cksul | N34: =P34*R34 -> 13548 | O34: =P34*R34 -> 13548 | P34: 6774 | R34: 2
B35: lefiZr vodk'k | N35: =ROUND((N30+N31)/24,0) -> 228573 | O35: =ROUND((O30+O31)/24,0) -> 221797
B36: dSf'k;j HkRrk | N36: =P36*R36*12 -> 0 | O36: =P36*R36*12 -> 0 | P36: 50 | R36: 0
B37: fnO;kax HkRrk | N37: =P37*R37*12 -> 0 | O37: =P37*R37*12 -> 0 | P37: 600 | R37: 0
B38: ¼fQDl osru½ vU; HkRRkk | N38: =P38*R38*12 -> 0 | O38: =P38*R38*12 -> 0 | P38: 8910 | R38: 0
B39: dqqy HkRrk ;ksx | N39: =SUM(N31+N32+N33+N34+N35+N38+N36+N37) -> 1221721 | O39: =SUM(O31+O32+O33+O34+O35+O38+O37+O36) -> 1185905
B40: ;ksx laosru | N40: =N39+N30 -> 6119721 | O40: =O39+O30 -> 5938705
B41: ;k=k HkRrk | N41: 0 | O41: 0
B42: esfMdy HkRrk | N42: 0 | O42: 0
B43: ;ksx ;k=k HkRrk$esfMdy HkRRkk | N43: =N41+N42 -> 0 | O43: =O41+O42 -> 0
B44: egk;ksx | N44: =N40+N43 -> 6119721 | O44: =O40+O43 -> 5938705

Sheet rrr 08
A1: izi= 8
A2: fuf'pr O;;ksa ds foLr`r vuqeku vFkkZr~ vf/kdkfj;ksa o deZpkfj;ksa ds osru vuqeku o"kZ ¼vizSy ls ekpZ rd½ | P2: =Profile!$M$2 -> 2020&2021
A3: ¼ctV vuqeku vf/kdkfj;ksa }kjk foHkkxk/;{k dks izLrqr djus gsrq½
A4: dk;kZy; %& | D4: =Profile!$D$2 -> jktdh; mPp ek/;fed fo|ky; 15tSM ¼Jhxaxkuxj½ | I4: foHkkx dk uke%& f'k{kk foHkkx | L4: =Profile!$K$2 -> Iyku 01 | P4: =Profile!$G$1 -> 2405
A5: ys[kk dk 'kh"kZ % eq[; 'kh"kZ@minh?kZ 'kh"kZ@y?kq'kh"kZ@mi'kh"kZ xzqi 'kh"kZ--------------------vk;kstuk fHkUu@vk;kstuk@dsUnz izofrZr ;kstuk | N5: j lgL=ksa esa
B6: Øe la[;k | C6: uke | E6: thih,Q @ ,uih,l uEcj | F6: in | G6: in dk Lohd`r osru | I6: =Profile!$J$3 -> ctV dh izkjfEHkd frfFk ;kfu 1ekpZ2020 dks deZpkjh dk osru | J6: igyh ekpZ ls vfUre Qjojh ds fy;s fu/kkZfjr jde | K6: o`f) tks bl vof/k esa gksxh | M6: =Profile!N3 -> vkxkeh o"kZ 2020&21 ds fy;s jde ¼dkye 10$12½ | N6: =Profile!O3 -> pkyw o"kZ 19&20 ds fy;s la'kksf/kr vuqeku | O6: fo'ks"k fooj.k | P6: deZpkjh vkbZ Mh
G7: xzsM is @ ysoy | K7: frfFk o`f) | L7: jde o`f)
B8: 1 | C8: 2 | E8: 3 | F8: 4 | G8: 5 | H8: 6 | I8: 7 | J8: 8 | K8: 9 | L8: 10 | M8: 11 | N8: 12 | O8: 13 | P8: 14
A9: =Profile!A6 -> jktif=r | B9: =Profile!B6 -> 1 | C9: =Profile!C6 -> Jh | D9: =Profile!D6 -> izHkkr 'kekZ | E9: =Profile!F6 -> 543895 | F9: =Profile!G6 -> iz/kkukpk;Z | G9: =Profile!H6 -> ysoy | H9: =Profile!I6 -> 16 | I9: =Profile!J6 -> 98800 | J9: =I9*12 -> 1185600 | K9: =Profile!L6 -> 2020-07-01 | L9: =O9*8 -> 24000 | M9: =J9+L9 -> 1209600 | N9: =M9-O9*12 -> 1173600 | O9: =Profile!P6 -> 3000 | P9: =Profile!E6 -> RJGA198635002357
A10: =Profile!A7 -> jktif=r | B10: =Profile!B7 -> 1 | C10: =Profile!C7 -> Jh | D10: =Profile!D7 -> ujsUnz dqekj foukspk | E10: =Profile!F7 -> 675687 | F10: =Profile!G7 -> O;k[;krk | G10: =Profile!H7 -> ysoy | H10: =Profile!I7 -> 13 | I10: =Profile!J7 -> 75600 | J10: =I10*12 -> 907200 | K10: =Profile!L7 -> 2020-07-01 | L10: =O10*8 -> 18400 | M10: =J10+L10 -> 925600 | N10: =M10-O10*12 -> 898000 | O10: =Profile!P7 -> 2300 | P10: =Profile!E7 -> RJGA199135024621
A11: =Profile!A8 -> jktif=r | B11: =Profile!B8 -> 2 | C11: =Profile!C8 -> Jherh | D11: =Profile!D8 -> lquhrk jkuh | E11: =Profile!F8 -> 617735 | F11: =Profile!G8 -> O;k[;krk | G11: =Profile!H8 -> ysoy | H11: =Profile!I8 -> 13 | I11: =Profile!J8 -> 73400 | J11: 880800 | K11: =Profile!L8 -> 2020-07-01 | L11: 17600 | M11: 898400 | N11: =M11-O11*12 -> 872000 | O11: =Profile!P8 -> 2200 | P11: =Profile!E8 -> RJGA198835003633
A12: =Profile!A9 -> jktif=r | B12: =Profile!B9 -> 3 | C12: =Profile!C9 -> Jh | D12: =Profile!D9 -> lqjsUnz flag xzksoj | E12: =Profile!F9 -> 965138 | F12: =Profile!G9 -> O;k[;krk | G12: =Profile!H9 -> ysoy | H12: =Profile!I9 -> 12 | I12: =Profile!J9 -> 69000 | J12: 828000 | K12: =Profile!L9 -> 2020-07-01 | L12: 16800 | M12: 844800 | N12: 819600 | O12: =Profile!P9 -> 2100 | P12: =Profile!E9 -> RJGA199935003208
A13: =Profile!A10 -> jktif=r | B13: =Profile!B10 -> 4 | C13: =Profile!C10 -> 0 | D13: =Profile!D10 -> 0 | E13: =Profile!F10 -> 0 | F13: =Profile!G10 -> O;k[;krk | G13: =Profile!H10 -> ysoy | H13: =Profile!I10 -> 12 | I13: =Profile!J10 -> 0 | J13: 0 | K13: =Profile!L10 -> 2020-07-01 | L13: 0 | M13: 0 | N13: 0 | O13: =Profile!P10 -> 0 | P13: =Profile!E10 -> 0
A14: =Profile!A11 -> jktif=r | B14: =Profile!B11 -> 5 | C14: =Profile!C11 -> 0 | D14: =Profile!D11 -> 0 | E14: =Profile!F11 -> 0 | F14: =Profile!G11 -> O;k[;krk | G14: =Profile!H11 -> ysoy | H14: =Profile!I11 -> 12 | I14: =Profile!J11 -> 0 | J14: 0 | K14: =Profile!L11 -> 2020-07-01 | L14: 0 | M14: 0 | N14: 0 | O14: =Profile!P11 -> 0 | P14: =Profile!E11 -> 0
A15: =Profile!A12 -> jktif=r | B15: =Profile!B12 -> 6 | C15: =Profile!C12 -> 0 | D15: =Profile!D12 -> 0 | E15: =Profile!F12 -> 0 | F15: =Profile!G12 -> O;k[;krk | G15: =Profile!H12 -> ysoy | H15: =Profile!I12 -> 12 | I15: =Profile!J12 -> 0 | J15: 0 | K15: =Profile!L12 -> 2020-07-01 | L15: 0 | M15: 0 | N15: 0 | O15: =Profile!P12 -> 0 | P15: =Profile!E12 -> 0
A16: =Profile!A13 -> vjktif=r | B16: =Profile!B13 -> 1 | C16: =Profile!C13 -> 0 | D16: =Profile!D13 -> 0 | E16: =Profile!F13 -> 0 | F16: =Profile!G13 -> ofj"B v/;kid | G16: =Profile!H13 -> ysoy | H16: =Profile!I13 -> 11 | I16: =Profile!J13 -> 0 | J16: 0 | K16: =Profile!L13 -> 2020-07-01 | L16: 0 | M16: 0 | N16: 0 | O16: =Profile!P13 -> 0 | P16: =Profile!E13 -> 0
A17: =Profile!A14 -> vjktif=r | B17: =Profile!B14 -> 2 | C17: =Profile!C14 -> 0 | D17: =Profile!D14 -> 0 | E17: =Profile!F14 -> 0 | F17: =Profile!G14 -> ofj"B v/;kid | G17: =Profile!H14 -> ysoy | H17: =Profile!I14 -> 11 | I17: =Profile!J14 -> 0 | J17: 0 | K17: =Profile!L14 -> 2020-07-01 | L17: 0 | M17: 0 | N17: 0 | O17: =Profile!P14 -> 0 | P17: =Profile!E14 -> 0
A18: =Profile!A15 -> vjktif=r | B18: =Profile!B15 -> 3 | C18: =Profile!C15 -> 0 | D18: =Profile!D15 -> 0 | E18: =Profile!F15 -> 0 | F18: =Profile!G15 -> ofj"B v/;kid | G18: =Profile!H15 -> ysoy | H18: =Profile!I15 -> 11 | I18: =Profile!J15 -> 0 | J18: 0 | K18: =Profile!L15 -> 2020-07-01 | L18: 0 | M18: 0 | N18: 0 | O18: =Profile!P15 -> 0 | P18: =Profile!E15 -> 0
A19: =Profile!A16 -> vjktif=r | B19: =Profile!B16 -> 4 | C19: =Profile!C16 -> 0 | D19: =Profile!D16 -> 0 | E19: =Profile!F16 -> 0 | F19: =Profile!G16 -> ofj"B v/;kid | G19: =Profile!H16 -> ysoy | H19: =Profile!I16 -> 11 | I19: =Profile!J16 -> 0 | J19: 0 | K19: =Profile!L16 -> 2020-07-01 | L19: 0 | M19: 0 | N19: 0 | O19: =Profile!P16 -> 0 | P19: =Profile!E16 -> 0
A20: =Profile!A17 -> vjktif=r | B20: =Profile!B17 -> 5 | C20: =Profile!C17 -> 0 | D20: =Profile!D17 -> 0 | E20: =Profile!F17 -> 0 | F20: =Profile!G17 -> ofj"B v/;kid | G20: =Profile!H17 -> ysoy | H20: =Profile!I17 -> 11 | I20: =Profile!J17 -> 0 | J20: 0 | K20: =Profile!L17 -> 2020-07-01 | L20: 0 | M20: 0 | N20: 0 | O20: =Profile!P17 -> 0 | P20: =Profile!E17 -> 0
A21: =Profile!A18 -> vjktif=r | B21: =Profile!B18 -> 6 | C21: =Profile!C18 -> 0 | D21: =Profile!D18 -> 0 | E21: =Profile!F18 -> 0 | F21: =Profile!G18 -> ofj"B v/;kid | G21: =Profile!H18 -> ysoy | H21: =Profile!I18 -> 11 | I21: =Profile!J18 -> 0 | J21: 0 | K21: =Profile!L18 -> 2020-07-01 | L21: 0 | M21: 0 | N21: 0 | O21: =Profile!P18 -> 0 | P21: =Profile!E18 -> 0
A22: =Profile!A19 -> vjktif=r | B22: =Profile!B19 -> a1 | C22: =Profile!C19 -> Jh | D22: =Profile!D19 -> jkts'k dqekj | E22: =Profile!F19 -> 749033 | F22: =Profile!G19 -> v/;kid ysoy&k | G22: =Profile!H19 -> ysoy | H22: =Profile!I19 -> 12 | I22: =Profile!J19 -> 61300 | J22: 735600 | K22: =Profile!L19 -> 2020-07-01 | L22: 14400 | M22: 750000 | N22: 728400 | O22: =Profile!P19 -> 1800 | P22: =Profile!E19 -> RJGA199635005048
A23: =Profile!A20 -> vjktif=r | B23: =Profile!B20 -> 2 | C23: =Profile!C20 -> 0 | D23: =Profile!D20 -> 0 | E23: =Profile!F20 -> 0 | F23: =Profile!G20 -> v/;kid | G23: =Profile!H20 -> ysoy | H23: =Profile!I20 -> 10 | I23: =Profile!J20 -> 0 | J23: 0 | K23: =Profile!L20 -> 2020-07-01 | L23: 0 | M23: 0 | N23: 0 | O23: =Profile!P20 -> 0 | P23: =Profile!E20 -> 0
A24: =Profile!A21 -> vjktif=r | B24: =Profile!B21 -> 3 | C24: =Profile!C21 -> 0 | D24: =Profile!D21 -> 0 | E24: =Profile!F21 -> 0 | F24: =Profile!G21 -> v/;kid | G24: =Profile!H21 -> ysoy | H24: =Profile!I21 -> 10 | I24: =Profile!J21 -> 0 | J24: =I24*12 -> 0 | K24: =Profile!L21 -> 2020-07-01 | L24: =O24*8 -> 0 | M24: =J24+L24 -> 0 | N24: =M24-O24*12 -> 0 | O24: =Profile!P21 -> 0 | P24: =Profile!E21 -> 0
A25: =Profile!A22 -> vjktif=r | B25: =Profile!B22 -> 1 | C25: =Profile!C22 -> 0 | D25: =Profile!D22 -> 0 | E25: =Profile!F22 -> 0 | F25: =Profile!G22 -> dk;kZy; lgk;d | G25: =Profile!H22 -> ysoy | H25: =Profile!I22 -> 10 | I25: =Profile!J22 -> 0 | J25: 0 | K25: =Profile!L22 -> 2020-07-01 | L25: 0 | M25: 0 | N25: 0 | O25: =Profile!P22 -> 0 | P25: =Profile!E22 -> 0
A26: =Profile!A23 -> vjktif=r | B26: =Profile!B23 -> 1 | C26: =Profile!C23 -> 0 | D26: =Profile!D23 -> 0 | E26: =Profile!F23 -> 0 | F26: =Profile!G23 -> ofj"B fyfid | G26: =Profile!H23 -> ysoy | H26: =Profile!I23 -> 8 | I26: =Profile!J23 -> 0 | J26: 0 | K26: =Profile!L23 -> 2020-07-01 | L26: 0 | M26: 0 | N26: 0 | O26: =Profile!P23 -> 0 | P26: =Profile!E23 -> 0
A27: =Profile!A24 -> vjktif=r | B27: =Profile!B24 -> 1 | C27: =Profile!C24 -> Jh | D27: =Profile!D24 -> dqynhi dqekj | E27: =Profile!F24 -> 110182269120 | F27: =Profile!G24 -> dfu"B lgk;d | G27: =Profile!H24 -> ysoy | H27: =Profile!I24 -> 5 | I27: =Profile!J24 -> 22000 | J27: 264000 | K27: =Profile!L24 -> 2020-07-01 | L27: 5600 | M27: 269600 | N27: 261200 | O27: =Profile!P24 -> 700 | P27: =Profile!E24 -> RJGA201535003030
A28: =Profile!A25 -> vjktif=r | B28: =Profile!B22 -> 1 | C28: =Profile!C22 -> 0 | D28: =Profile!D25 -> 0 | E28: =Profile!F25 -> 0 | F28: =Profile!G25 -> lgk;d deZpkjh | G28: =Profile!H25 -> ysoy | H28: =Profile!I25 -> 1 | I28: =Profile!J25 -> 0 | J28: 0 | K28: =Profile!L25 -> 2020-07-01 | L28: 0 | M28: 0 | N28: 0 | O28: =Profile!P25 -> 0 | P28: =Profile!E25 -> 0
A29: =Profile!A26 -> vjktif=r | B29: =Profile!B23 -> 1 | C29: =Profile!C23 -> 0 | D29: =Profile!D26 -> 0 | E29: =Profile!F26 -> 0 | F29: =Profile!G26 -> lgk;d deZpkjh | G29: =Profile!H26 -> ysoy | H29: =Profile!I26 -> 1 | I29: =Profile!J26 -> 0 | J29: 0 | K29: =Profile!L26 -> 2020-07-01 | L29: 0 | M29: 0 | N29: 0 | O29: =Profile!P26 -> 0 | P29: =Profile!E26 -> 0
B31: jktif=r ;ksx | I31: =Profile!J28 -> 316800 | J31: =Profile!K28 -> 3801600 | L31: =Profile!M28 -> 76800 | M31: =Profile!N28 -> 3878400 | N31: =Profile!O28 -> 3763200
B32: vjktif=r ;ksx | I32: =Profile!J29 -> 83300 | J32: =Profile!K29 -> 999600 | L32: =Profile!M29 -> 20000 | M32: =Profile!N29 -> 1019600 | N32: =Profile!O29 -> 989600
B33: ;ksx jktif=r$vjktif=r | I33: =Profile!J30 -> 400100 | J33: =Profile!K30 -> 4801200 | L33: =Profile!M30 -> 96800 | M33: =Profile!N30 -> 4898000 | N33: =Profile!O30 -> 4752800
B34: =Profile!$B$31 -> egaxkbZ HkRrk 12izfr'kr | M34: =Profile!N31 -> 587760 | N34: =Profile!O31 -> 570336
B35: =Profile!$B$32 -> edku fdjk;k 8izfr'kr | M35: =Profile!N32 -> 391840 | N35: =Profile!O32 -> 380224
B36: =Profile!$B$33 -> egaxkbZ HkRRkk ,sfj;j ¼----izfr'kr½ | M36: =Profile!N33 -> 0 | N36: =Profile!O33 -> 0
B37: =Profile!$B$34 -> cksul | M37: =Profile!N34 -> 13548 | N37: =Profile!O34 -> 13548
B38: =Profile!B35 -> lefiZr vodk'k | M38: =Profile!N35 -> 228573 | N38: =Profile!O35 -> 221797
B39: =Profile!B36 -> dSf'k;j HkRrk | M39: =Profile!N36 -> 0 | N39: =Profile!O36 -> 0
B40: =Profile!B37 -> fnO;kax HkRrk | M40: =Profile!N37 -> 0 | N40: =Profile!O37 -> 0
B41: =Profile!B38 -> ¼fQDl osru½ vU; HkRRkk | M41: =Profile!N38 -> 0 | N41: =Profile!O38 -> 0
B42: =Profile!$B$39 -> dqqy HkRrk ;ksx | M42: =Profile!N39 -> 1221721 | N42: =Profile!O39 -> 1185905
B43: =Profile!B40 -> ;ksx laosru | M43: =Profile!N40 -> 6119721 | N43: =Profile!O40 -> 5938705
B44: =Profile!B41 -> ;k=k HkRrk | M44: =Profile!N41 -> 0 | N44: =Profile!O41 -> 0
B45: =Profile!B42 -> esfMdy HkRrk | M45: =Profile!N42 -> 0 | N45: =Profile!O42 -> 0
B46: =Profile!B43 -> ;ksx ;k=k HkRrk$esfMdy HkRRkk | M46: =Profile!N43 -> 0 | N46: =Profile!O43 -> 0
B47: =Profile!B44 -> egk;ksx | M47: =Profile!N44 -> 6119721 | N47: =Profile!O44 -> 5938705
D49: izekf.kr fd;k tkrk gS fd mi;qZDr lwpuk dh esjs }kjk O;fDrxr :Ik ls tkap dj yh xbZ gS vksj bls lgh ik;k x;k gSA

Sheet rrr 09
A1: izi= 9
A2: fuf'pr O;;ksa ds foLr`r vuqeku vFkkZr~ vf/kdkfj;ksa o deZpkfj;ksa ds osru vuqeku o"kZ ¼vizSy ls ekpZ rd½ | S2: =Profile!$K$2 -> Iyku 01
A3: ¼ctV vuqeku vf/kdkfj;ksa }kjk foHkkxk/;{k dks izLrqr djus gsrq½
A4: dk;kZy; & | E4: =Profile!$D$2 -> jktdh; mPp ek/;fed fo|ky; 15tSM ¼Jhxaxkuxj½ | L4: foHkkx dk uke %& f'k{kk foHkkx | S4: =Profile!$G$1 -> 2405
A5: ys[kk dk 'kh"kZ % eq[; 'kh"kZ@minh?kZ 'kh"kZ@y?kq'kh"kZ@mi'kh"kZ xzqi 'kh"kZ--------------------vk;kstuk fHkUu@vk;kstuk@dsUnz izofrZr ;kstuk | L5: j lgL=ksa esa
A6: Øe l[;k | B6: ys[kk 'kh"kZd ¼foLr`r 'kh"kZ½ | C6: nrer@ ize`r | D6: okLrfod O;; vkadM+s¼xr iwoZ rhu o"kksZ ds½ | G6: vk; O;; ds vuqeku ckcr~ pkyw o"kZ 19&20 | H6: okLrfod O;; vkadM+s | K6: vxLr ls ekpZ rd dk laHkkfor O;; ¼pkyw o"kZ½ | L6: la'kksf/kr vuqeku 2019&20 ¼pkyw o"kZ½ 9$11 | M6: vk; O;; ds vuqeku ckcr 2020&21 ¼vkxkeh o"kZ½ | P6: o`f)¼$½ ;k deh¼&½ | S6: uohu vkbVe | T6: fo'ks"k fooj.k
D7: 16&17 | E7: 17&18 | F7: 18&19 esa ekpZ2019dk th-,-19 | H7: vxLr ls ekpZ rd ¼xr o"kZ½ | I7: viszy ls tqykbZ rd ¼pkyw o"kZ½ | J7: dkye 8 o 9 dk ;ksx | M7: dfeVsM | N7: uohu | O7: dqy ¼13+14½ | P7: 7 vkSj 12 esa | Q7: 10 vkSj 12 esa | R7: 12 vkSj 15 esa | S7: gka @ ugha
A8: 1 | B8: 2 | C8: 3 | D8: 4 | E8: 5 | F8: 6 | G8: 7 | H8: 8 | I8: 9 | J8: 10 | K8: 11 | L8: 12 | M8: 13 | N8: 14 | O8: 15 | P8: 16 | Q8: 17 | R8: 18 | S8: 19 | T8: 20
B9: ;ksx jk$vjk | L9: ='rrr 08'!$N$33 -> 4752800 | M9: ='rrr 08'!$M$33 -> 4898000 | O9: =M9+N9 -> 4898000
B10: egaxkbZ HkRrk 12% | L10: ='rrr 08'!N34 -> 570336 | M10: ='rrr 08'!M34 -> 587760 | O10: =M10+N10 -> 587760
B11: edku fdjk;k | L11: ='rrr 08'!N35 -> 380224 | M11: ='rrr 08'!M35 -> 391840 | O11: 391840
B12: ega- HkRrk ,sfj0 ----% | L12: ='rrr 08'!N36 -> 0 | M12: ='rrr 08'!M36 -> 0 | O12: 0
B13: cksul | L13: ='rrr 08'!N37 -> 13548 | M13: ='rrr 08'!M37 -> 13548 | O13: 13548
B14: lefiZr vodk'k | L14: ='rrr 08'!N38 -> 221797 | M14: ='rrr 08'!M38 -> 228573 | O14: 228573
B15: dSf'k;j HkRrk | L15: ='rrr 08'!N39 -> 0 | M15: ='rrr 08'!M39 -> 0 | O15: 0
B16: o`f) HkRrk | L16: ='rrr 08'!N40 -> 0 | M16: ='rrr 08'!M40 -> 0 | O16: 0
B17: vU; Hkrs | L17: ='rrr 08'!$N$41 -> 0 | M17: ='rrr 08'!$M$41 -> 0 | O17: 0
B18: ;ksx HkRrs | L18: ='rrr 08'!N42 -> 1185905 | M18: ='rrr 08'!M42 -> 1221721 | O18: 1221721
B19: ;ksx laosru | D19: 3835312 | E19: 4575840 | F19: 6004970 | G19: 5192000 | H19: 4037278 | I19: 1939070 | J19: =H19+I19 -> 5976348 | K19: =L19-I19 -> 3999635 | L19: ='rrr 08'!N43 -> 5938705 | M19: ='rrr 08'!M43 -> 6119721 | O19: 6119721
B20: ;k=k HkRrk | D20: 0 | E20: 0 | F20: 0 | G20: 0 | H20: 0 | I20: 0 | J20: =H20+I20 -> 0 | K20: =L20-I20 -> 0 | L20: ='rrr 08'!N44 -> 0 | M20: ='rrr 08'!M44 -> 0 | O20: 0
B21: esfMdy HkRrk | D21: 0 | E21: 0 | F21: 0 | G21: 0 | H21: 0 | I21: 0 | J21: 0 | K21: =L21-I21 -> 0 | L21: ='rrr 08'!N45 -> 0 | M21: ='rrr 08'!M45 -> 0 | O21: 0
B22: ;ksx ;k=k esfMdy | D22: =D20+D21 -> 0 | E22: =E20+E21 -> 0 | F22: 0 | G22: =G20+G21 -> 0 | H22: =H20+H21 -> 0 | I22: 0 | J22: 0 | K22: 0 | L22: ='rrr 08'!N46 -> 0 | M22: ='rrr 08'!M46 -> 0 | O22: 0
B23: ;ksx loZ;ksx | D23: =D22+D19 -> 3835312 | E23: 4575840 | F23: 6004970 | G23: =G22+G19 -> 5192000 | H23: =H22+H19 -> 4037278 | I23: =I22+I19 -> 1939070 | J23: =J22+J19 -> 5976348 | K23: =K22+K19 -> 3999635 | L23: =L19+L22 -> 5938705 | M23: =M19+M22 -> 6119721 | O23: 6119721
B24: dk;kZy; O;; | D24: 2000 | E24: 2000 | F24: 0 | G24: 2500 | H24: =F24-0 -> 0 | I24: 0 | J24: =H24+I24 -> 0 | K24: =L24-I24 -> 2500 | L24: 2500 | M24: 2000 | O24: 2000
B25: fofo/k | D25: 0 | E25: 0 | F25: 0 | G25: 0 | H25: =F25-0 -> 0 | I25: 0 | J25: =H25+I25 -> 0 | K25: =L25-I25 -> 0 | L25: 0 | M25: 0 | O25: 0
B26: iqLrdky; | D26: 500 | E26: 500 | F26: 0 | G26: 450 | H26: 0 | I26: 0 | J26: 0 | K26: 450 | L26: 450 | M26: 500 | O26: 500
B27: of)Z;k | D27: 0 | E27: 0 | F27: 0 | G27: 0 | H27: 0 | I27: 0 | J27: 0 | K27: 0 | L27: 0 | M27: 0 | O27: 0
B28: [ksydqn | D28: 0 | E28: 0 | F28: 0 | G28: 0 | H28: 0 | I28: 0 | J28: 0 | K28: 0 | L28: 0 | M28: 0 | O28: 0
B29: vU; | D29: 0 | E29: 0 | F29: 0 | G29: 0 | H29: 0 | I29: 0 | J29: 0 | K29: 0 | L29: 0 | M29: 0 | O29: 0
B30: ;ksx | D30: =D29+D28+D27+D26+D25+D24 -> 2500 | E30: =E29+E28+E27+E26+E25+E24 -> 2500 | F30: 0 | G30: 2950 | H30: 0 | I30: 0 | J30: 0 | K30: 2950 | L30: =L29+L28+L27+L26+L25+L24 -> 2950 | M30: =M29+M28+M27+M26+M25+M24 -> 2500 | O30: 2500
B31: ;ksx egk;ksx | D31: =D30+D23 -> 3837812 | E31: 4578340 | F31: 6004970 | G31: 5194950 | H31: 4037278 | I31: 1939070 | J31: 5976348 | K31: 4002585 | L31: 5941655 | M31: =M30+M23 -> 6122221 | O31: 6122221
B33: uohu inksa ds fy, izi=
B34: Øekad | C34: in uke | F34: u;k@ØekssUu;u | H34: is cSaM | K34: xzsM is | M34: dqy in | O34: fooj.k
B35: 1 | C35: 2 | F35: 3 | H35: 4 | K35: 5 | M35: 6 | O35: 7
B36: 1
B37: 2
B38: 3
B39: 4
B40: 5
B41: 6
B42: 7
B45: vU; uohu vkbVe ds fy, izi=
B46: Øekad | C46: uohu vkbVe izdkj | E46: Ø; @ fdjk;k | G46: vkbVe dk uke | I46: la[;k | K46: vkorhZ O;; ekfld | M46: vukorhZ Hkkj | O46: dqy okf"kZd Hkkj | R46: vU; fooj.k
B47: 1
B48: 2
B49: 3
B50: 4
B51: 5
B52: 6
B54: izekf.kr fd;k tkrk gS fd mi;qZDr lwpuk dh esjs }kjk O;fDrxr :Ik ls tkap dj yh xbZ gS vksj bls lgh ik;k x;k gSA

Sheet rrr10
A1: izi= 10
A2: vk; dk foLr`r ctV vuqeku forh; o"kZ ---------------------¼1vizSy ls 31ekpZ rd½ dk | K2: MhMhvks dksM | L2: =Profile!$G$1 -> 2405 | M2: =Profile!$K$2 -> Iyku 01
A3: dk;kZy; & | C3: =Profile!$D$2 -> jktdh; mPp ek/;fed fo|ky; 15tSM ¼Jhxaxkuxj½ | J3: foHkkx dk uke %& f'k{kk foHkkx | N3: j lgL=ksa esa
A4: Øe l[;k | B4: ys[kk dk 'kh"kZ nh?kZ 'kh"kZ@ minh?kZ 'kh"kZ@ y?kq'kh"kZ@ mi'kh"kZ | C4: okLrfod O;; vkadM+s ¼xr iwoZ rhu o"kksZ ds½ | F4: ='rrr 09'!$G$6 -> vk; O;; ds vuqeku ckcr~ pkyw o"kZ 19&20 | G4: okLrfod vk; vkadM+s | J4: vxLr ls ekpZ rd dk laHkkfor vk; 19&20 ¼pkyw o"kZ½ | K4: la'kksf/kr vuqeku 19&20 ¼pkyw o"kZ½ 8$10 | L4: vk; O;; ds vuqeku ckcr ¼vkxkeh o"kZ½ 20&21 | M4: o`f)¼$½ ;k deh¼&½
C5: ='rrr 09'!D7 -> 16&17 | D5: ='rrr 09'!E7 -> 17&18 | E5: ='rrr 09'!$F$7 -> 18&19 esa ekpZ2019dk th-,-19 | G5: vxLr ls ekpZ rd ¼xr o"kZ½ | H5: viszy ls tqykbZ rd ¼pkyw o"kZ½ | I5: dkye 7 o 8 dk ;ksx | M5: 6 vkSj 11 esa | N5: 9 vkSj 11 esa | O5: 11 vkSj 12 esa
A6: 1 | B6: 2 | C6: 3 | D6: 4 | E6: 5 | F6: 6 | G6: 7 | H6: 8 | I6: 9 | J6: 10 | K6: 11 | L6: 12 | M6: 13 | N6: 14 | O6: 15
B7: f'k{k.k 'kqYd | C7: 0 | D7: 0 | E7: 0 | F7: 0 | G7: 0 | H7: 0 | I7: =G7+H7 -> 0 | J7: 0 | K7: =H7+J7 -> 0 | L7: 0
B8: Vh-lh- | C8: 0 | D8: 0 | E8: 0 | F8: 0 | G8: 0 | H8: 0 | I8: =G8+H8 -> 0 | J8: 0 | K8: =H8+J8 -> 0 | L8: 0
B9: izos'k 'kqYd | C9: 0 | D9: 0 | E9: 0 | F9: 0 | G9: 0 | H9: 0 | I9: 0 | J9: 0 | K9: 0 | L9: 0
B10: vU; | C10: 0 | D10: 0 | E10: 0 | F10: 0 | G10: 0 | H10: 0 | I10: 0 | J10: 0 | K10: 0 | L10: 0
B11: ;ksx | C11: =C10+C9+C8+C7 -> 0 | D11: =D10+D9+D8+D7 -> 0 | E11: 0 | F11: 0 | G11: =G10+G9+G8+G7 -> 0 | H11: 0 | I11: 0 | J11: 0 | K11: 0 | L11: 0

Sheet P1
A1: =Profile!$A$2 -> dk;kZy; %& | C1: =Profile!$D$2 -> jktdh; mPp ek/;fed fo|ky; 15tSM ¼Jhxaxkuxj½
A2: izi= 1 ¼ctV en 2202&02&109&01&00 IykWu½
A3: ys[kk en | C3: 01 laosru dk x.ku @ ekax izi= | F3: =Profile!$K$2 -> Iyku 01 | H3: jkf'k yk[kksa esa
A4: Ø-la- | B4: vkWfQl vkbZ-Mh- | C4: fo|ky; dk uke | D4: forh; o"kZ 2019&20 esa laosru esa vkaCkfVr jkf'k | E4: 07@19 rd dk okLrfod O;; | F4: 08@19 ls 03@20 rd gksus okyk vuqekfur O;; | G4: forh; o"kZ esa gksus okyk dqy O;; | H4: o"kZ 2019&20 vfrfjDr ds fy, vko';drk
G5: ;ksx dkWye ¼5$6½ | H5: ;ksx dkWye ¼4&7½
A6: 1 | B6: 2 | C6: 3 | D6: 4 | E6: 5 | F6: 6 | G6: 7 | H6: 8
A7: 1 | B7: =Profile!$G$1 -> 2405 | C7: =Profile!$D$2 -> jktdh; mPp ek/;fed fo|ky; 15tSM ¼Jhxaxkuxj½ | D7: ='rrr 09'!$G$19 -> 5192000 | E7: ='rrr 09'!$I$19 -> 1939070 | F7: ='rrr 09'!$K$19 -> 3999635 | G7: =E7+F7 -> 5938705 | H7: =D7-G7 -> -746705

Sheet retir
A1: =[1]Profile!A2 -> dk;kZy; %& | D1: =[1]Profile!D2 -> jktdh; mPp ek/;fed fo|ky; gj[ksokyk ineiqj¼Jhxaxkuxj½
A2: izi= 12 ,
A3: osru J`a[kyk 1 ls 6 rd lsokfuo`r gksus okys dkfeZd dk fooj.k
A4: en 2202 Iyku o"kZ 2019&2020
A5: Ø-la | B5: ctV en | C5: deZpkjh dk uke | D5: osru Ja[kyk | E5: in uke | F5: lsokfuo`r fnukad | G5: lsokfuo`r deZpkjh dh lsokfuo`fr ds le; ns; mikftZr vodk'k | H5: dkfeZd dk lsokfuo`fr ds le; ewy osru | I5: lsokfuo`r deZpkjh dh jde

Sheet P3
A1: =Profile!A2 -> dk;kZy; %& | D1: =Profile!D2 -> jktdh; mPp ek/;fed fo|ky; 15tSM ¼Jhxaxkuxj½
A2: ¼v½ fu;fer Lohd`r inks dk fooj.k
A3: ys[kk dk 'kh"kZ nh?kZ 'kh"kZ@ minh?kZ 'kh"kZ@ y?kq'kh"kZ@ mi'kh"kZ | B3: ukWuIyku @ Iyku @ lh-,l-,l- | C3: in uke | D3: xzsM is | E3: Lohd`r inksa dh la[;k ¼fnukad 01-04-2019 dh fLFkfr½ | F3: pkyw o"kZ 2019&2020 esa Lohd`r u;s inksa dh la[;k | G3: pkyw o"kZ 2019&2020 esa lekIr fd;s x;s inksa dh la[;k | H3: orZeku inkas dh la[;k ¼dkWye la[;k 5+6-7½ | I3: fu;fer dk;Zjr | K3: 27-08-2019 dks fjDr inksa dh la[;k | L3: fnukad ftlls in fjDr gS
I4: 1tuojh 2004 ls iwoZ fu;qfDr | J4: 1tuojh 2004 ds Ik'pkr fu;qfDr
A5: 1 | B5: 2 | C5: 3 | D5: 4 | E5: 5 | F5: 6 | G5: 7 | H5: 8 | I5: 9 | J5: 10 | K5: 11 | L5: 12
A6: =Profile!A6 -> jktif=r | B6: =Profile!$K$2 -> Iyku 01 | C6: =Profile!G6 -> iz/kkukpk;Z | D6: =Profile!I6 -> 16 | E6: 1 | F6: 0 | G6: 0 | H6: =E6+F6-G6 -> 1 | I6: 1 | J6: 0 | K6: 0
A7: =Profile!A7 -> jktif=r | B7: =Profile!$K$2 -> Iyku 01 | C7: =Profile!G7 -> O;k[;krk | D7: =Profile!I7 -> 13 | E7: 1 | F7: 0 | G7: 0 | H7: 1 | I7: 1 | J7: 0 | K7: 0
A8: =Profile!A8 -> jktif=r | B8: =Profile!$K$2 -> Iyku 01 | C8: =Profile!G8 -> O;k[;krk | D8: =Profile!I8 -> 13 | E8: 1 | F8: 0 | G8: 0 | H8: 1 | I8: 1 | J8: 0 | K8: 0
A9: =Profile!A9 -> jktif=r | B9: =Profile!$K$2 -> Iyku 01 | C9: =Profile!G9 -> O;k[;krk | D9: =Profile!I9 -> 12 | E9: 1 | F9: 0 | G9: 0 | H9: 1 | I9: 1 | J9: 0 | K9: 0
A10: =Profile!A10 -> jktif=r | B10: =Profile!$K$2 -> Iyku 01 | C10: =Profile!G10 -> O;k[;krk | D10: =Profile!I10 -> 12 | E10: 0 | F10: 0 | G10: 0 | H10: 0
A11: =Profile!A11 -> jktif=r | B11: =Profile!$K$2 -> Iyku 01 | C11: =Profile!G11 -> O;k[;krk | D11: =Profile!I11 -> 12 | E11: 0 | F11: 0 | G11: 0 | H11: 0
A12: =Profile!A12 -> jktif=r | B12: =Profile!$K$2 -> Iyku 01 | C12: =Profile!G12 -> O;k[;krk | D12: =Profile!I12 -> 12 | E12: 0 | F12: 0 | G12: 0 | H12: 0
A13: =Profile!A13 -> vjktif=r | B13: =Profile!$K$2 -> Iyku 01 | C13: =Profile!G13 -> ofj"B v/;kid | D13: =Profile!I13 -> 11 | E13: 0 | F13: 0 | G13: 0 | H13: =E13+F13-G13 -> 0
A14: =Profile!A14 -> vjktif=r | B14: =Profile!$K$2 -> Iyku 01 | C14: =Profile!G14 -> ofj"B v/;kid | D14: =Profile!I14 -> 11 | E14: 0 | F14: 0 | G14: 0 | H14: 0
A15: =Profile!A15 -> vjktif=r | B15: =Profile!$K$2 -> Iyku 01 | C15: =Profile!G15 -> ofj"B v/;kid | D15: =Profile!I15 -> 11 | E15: 0 | F15: 0 | G15: 0 | H15: 0
A16: =Profile!A16 -> vjktif=r | B16: =Profile!$K$2 -> Iyku 01 | C16: =Profile!G16 -> ofj"B v/;kid | D16: =Profile!I16 -> 11 | E16: 0 | F16: 0 | G16: 0 | H16: 0
A17: =Profile!A17 -> vjktif=r | B17: =Profile!$K$2 -> Iyku 01 | C17: =Profile!G17 -> ofj"B v/;kid | D17: =Profile!I17 -> 11 | E17: 0 | F17: 0 | G17: 0 | H17: 0
A18: =Profile!A18 -> vjktif=r | B18: =Profile!$K$2 -> Iyku 01 | C18: =Profile!G18 -> ofj"B v/;kid | D18: =Profile!I18 -> 11 | E18: 0 | F18: 0 | G18: 0 | H18: 0
A19: =Profile!A19 -> vjktif=r | B19: =Profile!$K$2 -> Iyku 01 | C19: =Profile!G19 -> v/;kid ysoy&k | D19: =Profile!I19 -> 12 | E19: 1 | F19: 0 | G19: 0 | H19: 1 | I19: 1 | J19: 0 | K19: 0
A20: =Profile!A20 -> vjktif=r | B20: =Profile!$K$2 -> Iyku 01 | C20: =Profile!G20 -> v/;kid | D20: =Profile!I20 -> 10 | E20: 0 | F20: 0 | G20: 0 | H20: 0
A21: =Profile!A21 -> vjktif=r | B21: =Profile!$K$2 -> Iyku 01 | C21: =Profile!G21 -> v/;kid | D21: =Profile!I21 -> 10 | E21: 0 | F21: 0 | G21: 0 | H21: 0
A22: =Profile!A22 -> vjktif=r | B22: =Profile!$K$2 -> Iyku 01 | C22: =Profile!G22 -> dk;kZy; lgk;d | D22: =Profile!I22 -> 10 | E22: 0 | F22: 0 | G22: 0 | H22: 0
A23: =Profile!A23 -> vjktif=r | B23: =Profile!$K$2 -> Iyku 01 | C23: =Profile!G23 -> ofj"B fyfid | D23: =Profile!I23 -> 8 | E23: 0 | F23: 0 | G23: 0 | H23: 0
A24: =Profile!A24 -> vjktif=r | B24: =Profile!$K$2 -> Iyku 01 | C24: =Profile!G24 -> dfu"B lgk;d | D24: =Profile!I24 -> 5 | E24: 1 | F24: 0 | G24: 0 | H24: 1 | I24: 0 | J24: 1 | K24: 0
A25: =Profile!A25 -> vjktif=r | B25: =Profile!$K$2 -> Iyku 01 | C25: =Profile!G25 -> lgk;d deZpkjh | D25: =Profile!I25 -> 1 | E25: 0 | F25: 0 | G25: 0 | H25: 0
A26: =Profile!A26 -> vjktif=r | B26: =Profile!$K$2 -> Iyku 01 | C26: =Profile!G26 -> lgk;d deZpkjh | D26: =Profile!I26 -> 1 | E26: 0 | F26: 0 | G26: 0 | H26: 0
C28: dqy | E28: =SUM(E6:E27) -> 6 | F28: =SUM(F6:F27) -> 0 | G28: 0 | H28: 6 | I28: 5 | J28: 1 | K28: 0

Sheet Metrix
A1: Pay Metrix of State Government Servents wef 01-10-2017
A2: Existing Pay Band | B2: PB-1 (5200-20200) | K2: PB-2 (9300-34800) | O2: PB-3 (15600-39100) | V2: PB-4 (37400-67000) | AA2: =RIGHT(AA4,LEN(AA4)-2)+1 -> 13 | AB2: =CONCATENATE("L-",AA2) -> L-13
A3: Existing Grade Pay | B3: 1700 | C3: 1750 | D3: 1900 | E3: 2000 | F3: 2400 | G3: 2400 | H3: 2400 | I3: 2800 | J3: 2800 | K3: 3600 | L3: 4200 | M3: 4800 | N3: 5400 | O3: 5400 | P3: 6000 | Q3: 6600 | R3: 6800 | S3: 7200 | T3: 7600 | U3: 8200 | V3: 8700 | W3: 8900 | X3: 9500 | Y3: 10000 | AA3: =[2]Entry!E11 -> 59500 | AB3: =ROUND(AA5*3%,-2)+AA5 -> 61300
A4: Existing Grade Pay No. | B4: 2 | C4: 3 | D4: 4 | E4: 5 | F4: 9 | G4: 9A | H4: 9B | I4: 10 | J4: 10A | K4: 11 | L4: 12 | M4: 13 | N4: 15 | O4: 15 | P4: 16 | Q4: 17 | R4: 18 | S4: 19 | T4: 20 | U4: 21 | V4: 22 | W4: 23 | X4: 23A | Y4: 24 | AA4: =[2]Entry!G11 -> L-12 | AB4: =AB2 -> L-13
A5: Level | B5: L-1 | C5: L-2 | D5: L-3 | E5: L-4 | F5: L-5 | G5: L-6 | H5: L-7 | I5: L-8 | J5: L-9 | K5: L-10 | L5: L-11 | M5: L-12 | N5: L-13 | O5: L-14 | P5: L-15 | Q5: L-16 | R5: L-17 | S5: L-18 | T5: L-19 | U5: L-20 | V5: L-21 | W5: L-22 | X5: L-23 | Y5: L-24 | AA5: =INDEX($AA$7:$AA$46,MATCH(TRUE,INDEX($AA$7:$AA$46>=AA3,0),)) -> 59500 | AB5: =INDEX($AB$7:$AB$46,MATCH(TRUE,INDEX($AB$7:$AB$46>=AB3,0),)) -> 61500
A6: Cell No. | B6: Pay Metrix (Amount in Rs.)
A7: 1 | B7: 17700 | C7: 17900 | D7: 18200 | E7: 19200 | F7: 20800 | G7: 21500 | H7: 22400 | I7: 26300 | J7: 28700 | K7: 33800 | L7: 37800 | M7: 44300 | N7: 53100 | O7: 56100 | P7: 60700 | Q7: 67300 | R7: 71000 | S7: 75300 | T7: 79900 | U7: 88900 | V7: 123100 | W7: 129700 | X7: 145800 | Y7: 148800 | AA7: =IF($AA$4="L-1",B7,IF($AA$4="L-2",C7,IF($AA$4="L-3",D7,IF($AA$4="L-4",E7,IF($AA$4="L-5",F7,IF($AA$4="L-6",G7,IF($AA$4="L-7",H7,IF($AA$4="L-8",I7,IF($AA$4="L-9",J7,IF($AA$4="L-10",K7,IF($AA$4="L-11",L7,IF($AA$4="L-12",M7,IF($AA$4="L-13",N7,IF($AA$4="L-14",O7,IF($AA$4="L-15",P7,IF($AA$4="L-16",Q7,IF($AA$4="L-17",R7,IF($AA$4="L-18",S7,IF($AA$4="L-19",T7,IF($AA$4="L-20",U7,IF($AA$4="L-21",V7,IF($AA$4="L-22",W7,IF($AA$4="L-23",X7,IF($AA$4="L-24",Y7,"")))))))))))))))))))))))) -> 44300 | AB7: =IF($AB$4="L-1",B7,IF($AB$4="L-2",C7,IF($AB$4="L-3",D7,IF($AB$4="L-4",E7,IF($AB$4="L-5",F7,IF($AB$4="L-6",G7,IF($AB$4="L-7",H7,IF($AB$4="L-8",I7,IF($AB$4="L-9",J7,IF($AB$4="L-10",K7,IF($AB$4="L-11",L7,IF($AB$4="L-12",M7,IF($AB$4="L-13",N7,IF($AB$4="L-14",O7,IF($AB$4="L-15",P7,IF($AB$4="L-16",Q7,IF($AB$4="L-17",R7,IF($AB$4="L-18",S7,IF($AB$4="L-19",T7,IF($AB$4="L-20",U7,IF($AB$4="L-21",V7,IF($AB$4="L-22",W7,IF($AB$4="L-23",X7,IF($AB$4="L-24",Y7,"")))))))))))))))))))))))) -> 53100
A8: 2 | B8: 18200 | C8: 18400 | D8: 18700 | E8: 19800 | F8: 21400 | G8: 22100 | H8: 23100 | I8: 27100 | J8: 29600 | K8: 34800 | L8: 38900 | M8: 45600 | N8: 54700 | O8: 57800 | P8: 62500 | Q8: 69300 | R8: 73100 | S8: 77600 | T8: 82300 | U8: 91600 | V8: 126800 | W8: 133600 | X8: 150200 | Y8: 153300 | AA8: =IF($AA$4="L-1",B8,IF($AA$4="L-2",C8,IF($AA$4="L-3",D8,IF($AA$4="L-4",E8,IF($AA$4="L-5",F8,IF($AA$4="L-6",G8,IF($AA$4="L-7",H8,IF($AA$4="L-8",I8,IF($AA$4="L-9",J8,IF($AA$4="L-10",K8,IF($AA$4="L-11",L8,IF($AA$4="L-12",M8,IF($AA$4="L-13",N8,IF($AA$4="L-14",O8,IF($AA$4="L-15",P8,IF($AA$4="L-16",Q8,IF($AA$4="L-17",R8,IF($AA$4="L-18",S8,IF($AA$4="L-19",T8,IF($AA$4="L-20",U8,IF($AA$4="L-21",V8,IF($AA$4="L-22",W8,IF($AA$4="L-23",X8,IF($AA$4="L-24",Y8,"")))))))))))))))))))))))) -> 45600 | AB8: =IF($AB$4="L-1",B8,IF($AB$4="L-2",C8,IF($AB$4="L-3",D8,IF($AB$4="L-4",E8,IF($AB$4="L-5",F8,IF($AB$4="L-6",G8,IF($AB$4="L-7",H8,IF($AB$4="L-8",I8,IF($AB$4="L-9",J8,IF($AB$4="L-10",K8,IF($AB$4="L-11",L8,IF($AB$4="L-12",M8,IF($AB$4="L-13",N8,IF($AB$4="L-14",O8,IF($AB$4="L-15",P8,IF($AB$4="L-16",Q8,IF($AB$4="L-17",R8,IF($AB$4="L-18",S8,IF($AB$4="L-19",T8,IF($AB$4="L-20",U8,IF($AB$4="L-21",V8,IF($AB$4="L-22",W8,IF($AB$4="L-23",X8,IF($AB$4="L-24",Y8,"")))))))))))))))))))))))) -> 54700
A9: 3 | B9: 18700 | C9: 19000 | D9: 19300 | E9: 20400 | F9: 22000 | G9: 22800 | H9: 23800 | I9: 27900 | J9: 30500 | K9: 35800 | L9: 40100 | M9: 47000 | N9: 56300 | O9: 59500 | P9: 64400 | Q9: 71400 | R9: 75300 | S9: 79900 | T9: 84800 | U9: 94300 | V9: 130600 | W9: 137600 | X9: 154700 | Y9: 157900 | AA9: 47000 | AB9: 56300
A10: 4 | B10: 19300 | C10: 19600 | D10: 19900 | E10: 21000 | F10: 22700 | G10: 23500 | H10: 24500 | I10: 28700 | J10: 31400 | K10: 36900 | L10: 41300 | M10: 48400 | N10: 58000 | O10: 61300 | P10: 66300 | Q10: 73500 | R10: 77600 | S10: 82300 | T10: 87300 | U10: 97100 | V10: 134500 | W10: 141700 | X10: 159300 | Y10: 162600 | AA10: 48400 | AB10: 58000
A11: 5 | B11: 19900 | C11: 20200 | D11: 20500 | E11: 21600 | F11: 23400 | G11: 24200 | H11: 25200 | I11: 29600 | J11: 32300 | K11: 38000 | L11: 42500 | M11: 49900 | N11: 59700 | O11: 63100 | P11: 68300 | Q11: 75700 | R11: 79900 | S11: 84800 | T11: 89900 | U11: 100000 | V11: 138500 | W11: 146000 | X11: 164100 | Y11: 167500 | AA11: 49900 | AB11: 59700
A12: 6 | B12: 20500 | C12: 20800 | D12: 21100 | E12: 22200 | F12: 24100 | G12: 24900 | H12: 26000 | I12: 30500 | J12: 33300 | K12: 39100 | L12: 43800 | M12: 51400 | N12: 61500 | O12: 65000 | P12: 70300 | Q12: 78000 | R12: 82300 | S12: 87300 | T12: 92600 | U12: 103000 | V12: 142700 | W12: 150400 | X12: 169000 | Y12: 172500 | AA12: 51400 | AB12: 61500
A13: 7 | B13: 21100 | C13: 21400 | D13: 21700 | E13: 22900 | F13: 24800 | G13: 25600 | H13: 26800 | I13: 31400 | J13: 34300 | K13: 40300 | L13: 45100 | M13: 52900 | N13: 63300 | O13: 67000 | P13: 72400 | Q13: 80300 | R13: 84800 | S13: 89900 | T13: 95400 | U13: 106100 | V13: 147000 | W13: 154900 | X13: 174100 | Y13: 177700 | AA13: 52900 | AB13: 63300
A14: 8 | B14: 21700 | C14: 22000 | D14: 22400 | E14: 23600 | F14: 25500 | G14: 26400 | H14: 27600 | I14: 32300 | J14: 35300 | K14: 41500 | L14: 46500 | M14: 54500 | N14: 65200 | O14: 69000 | P14: 74600 | Q14: 82700 | R14: 87300 | S14: 92600 | T14: 98300 | U14: 109300 | V14: 151400 | W14: 159500 | X14: 179300 | Y14: 183000 | AA14: 54500 | AB14: 65200
A15: 9 | B15: 22400 | C15: 22700 | D15: 23100 | E15: 24300 | F15: 26300 | G15: 27200 | H15: 28400 | I15: 33300 | J15: 36400 | K15: 42700 | L15: 47900 | M15: 56100 | N15: 67200 | O15: 71100 | P15: 76800 | Q15: 85200 | R15: 89900 | S15: 95400 | T15: 101200 | U15: 112600 | V15: 155900 | W15: 164300 | X15: 184700 | Y15: 188500 | AA15: 56100 | AB15: 67200
A16: 10 | B16: 23100 | C16: 23400 | D16: 23800 | E16: 25000 | F16: 27100 | G16: 28000 | H16: 29300 | I16: 34300 | J16: 37500 | K16: 44000 | L16: 49300 | M16: 57800 | N16: 69200 | O16: 73200 | P16: 79100 | Q16: 87800 | R16: 92600 | S16: 98300 | T16: 104200 | U16: 116000 | V16: 160600 | W16: 169200 | X16: 190200 | Y16: 194200 | AA16: 57800 | AB16: 69200
A17: 11 | B17: 23800 | C17: 24100 | D17: 24500 | E17: 25800 | F17: 27900 | G17: 28800 | H17: 30200 | I17: 35300 | J17: 38600 | K17: 45300 | L17: 50800 | M17: 59500 | N17: 71300 | O17: 75400 | P17: 81500 | Q17: 90400 | R17: 95400 | S17: 101200 | T17: 107300 | U17: 119500 | V17: 165400 | W17: 174300 | X17: 195900 | Y17: 200000 | AA17: 59500 | AB17: 71300
A18: 12 | B18: 24500 | C18: 24800 | D18: 25200 | E18: 26600 | F18: 28700 | G18: 29700 | H18: 31100 | I18: 36400 | J18: 39800 | K18: 46700 | L18: 52300 | M18: 61300 | N18: 73400 | O18: 77700 | P18: 83900 | Q18: 93100 | R18: 98300 | S18: 104200 | T18: 110500 | U18: 123100 | V18: 170400 | W18: 179500 | X18: 201800 | Y18: 206000 | AA18: 61300 | AB18: 73400
A19: 13 | B19: 25200 | C19: 25500 | D19: 26000 | E19: 27400 | F19: 29600 | G19: 30600 | H19: 32000 | I19: 37500 | J19: 41000 | K19: 48100 | L19: 53900 | M19: 63100 | N19: 75600 | O19: 80000 | P19: 86400 | Q19: 95900 | R19: 101200 | S19: 107300 | T19: 113800 | U19: 126800 | V19: 175500 | W19: 184900 | X19: 207900 | Y19: 212200 | AA19: 63100 | AB19: 75600
A20: 14 | B20: 26000 | C20: 26300 | D20: 26800 | E20: 28200 | F20: 30500 | G20: 31500 | H20: 33000 | I20: 38600 | J20: 42200 | K20: 49500 | L20: 55500 | M20: 65000 | N20: 77900 | O20: 82400 | P20: 89000 | Q20: 98800 | R20: 104200 | S20: 110500 | T20: 117200 | U20: 130600 | V20: 180800 | W20: 190400 | X20: 214100 | Y20: 218600 | AA20: 65000 | AB20: 77900
A21: 15 | B21: 26800 | C21: 27100 | D21: 27600 | E21: 29000 | F21: 31400 | G21: 32400 | H21: 34000 | I21: 39800 | J21: 43500 | K21: 51000 | L21: 57200 | M21: 67000 | N21: 80200 | O21: 84900 | P21: 91700 | Q21: 101800 | R21: 107300 | S21: 113800 | T21: 120700 | U21: 134500 | V21: 186200 | W21: 196100 | AA21: 67000 | AB21: 80200
A22: 16 | B22: 27600 | C22: 27900 | D22: 28400 | E22: 29900 | F22: 32300 | G22: 33400 | H22: 35000 | I22: 41000 | J22: 44800 | K22: 52500 | L22: 58900 | M22: 69000 | N22: 82600 | O22: 87400 | P22: 94500 | Q22: 104900 | R22: 110500 | S22: 117200 | T22: 124300 | U22: 138500 | V22: 191800 | W22: 202000 | AA22: 69000 | AB22: 82600
A23: 17 | B23: 28400 | C23: 28700 | D23: 29300 | E23: 30800 | F23: 33300 | G23: 34400 | H23: 36100 | I23: 42200 | J23: 46100 | K23: 54100 | L23: 60700 | M23: 71100 | N23: 85100 | O23: 90000 | P23: 97300 | Q23: 108000 | R23: 113800 | S23: 120700 | T23: 128000 | U23: 142700 | V23: 197600 | W23: 208100 | AA23: 71100 | AB23: 85100
A24: 18 | B24: 29300 | C24: 29600 | D24: 30200 | E24: 31700 | F24: 34300 | G24: 35400 | H24: 37200 | I24: 43500 | J24: 47500 | K24: 55700 | L24: 62500 | M24: 73200 | N24: 87700 | O24: 92700 | P24: 100200 | Q24: 111200 | R24: 117200 | S24: 124300 | T24: 131800 | U24: 147000 | V24: 203500 | AA24: 73200 | AB24: 87700
A25: 19 | B25: 30200 | C25: 30500 | D25: 31100 | E25: 32700 | F25: 35300 | G25: 36500 | H25: 38300 | I25: 44800 | J25: 48900 | K25: 57400 | L25: 64400 | M25: 75400 | N25: 90300 | O25: 95500 | P25: 103200 | Q25: 114500 | R25: 120700 | S25: 128000 | T25: 135800 | U25: 151400 | AA25: 75400 | AB25: 90300
A26: 20 | B26: 31100 | C26: 31400 | D26: 32000 | E26: 33700 | F26: 36400 | G26: 37600 | H26: 39400 | I26: 46100 | J26: 50400 | K26: 59100 | L26: 66300 | M26: 77700 | N26: 93000 | O26: 98400 | P26: 106300 | Q26: 117900 | R26: 124300 | S26: 131800 | T26: 139900 | U26: 155900 | AA26: 77700 | AB26: 93000
A27: 21 | B27: 32000 | C27: 32300 | D27: 33000 | E27: 34700 | F27: 37500 | G27: 38700 | H27: 40600 | I27: 47500 | J27: 51900 | K27: 60900 | L27: 68300 | M27: 80000 | N27: 95800 | O27: 101400 | P27: 109500 | Q27: 121400 | R27: 128000 | S27: 135800 | T27: 144100 | U27: 160600 | AA27: 80000 | AB27: 95800
A28: 22 | B28: 33000 | C28: 33300 | D28: 34000 | E28: 35700 | F28: 38600 | G28: 39900 | H28: 41800 | I28: 48900 | J28: 53500 | K28: 62700 | L28: 70300 | M28: 82400 | N28: 98700 | O28: 104400 | P28: 112800 | Q28: 125000 | R28: 131800 | S28: 139900 | T28: 148400 | U28: 165400 | AA28: 82400 | AB28: 98700
A29: 23 | B29: 34000 | C29: 34300 | D29: 35000 | E29: 36800 | F29: 39800 | G29: 41100 | H29: 43100 | I29: 50400 | J29: 55100 | K29: 64600 | L29: 72400 | M29: 84900 | N29: 101700 | O29: 107500 | P29: 116200 | Q29: 128800 | R29: 135800 | S29: 144100 | T29: 152900 | U29: 170400 | AA29: 84900 | AB29: 101700
A30: 24 | B30: 35000 | C30: 35300 | D30: 36100 | E30: 37900 | F30: 41000 | G30: 42300 | H30: 44400 | I30: 51900 | J30: 56800 | K30: 66500 | L30: 74600 | M30: 87400 | N30: 104800 | O30: 110700 | P30: 119700 | Q30: 132700 | R30: 139900 | S30: 148400 | T30: 157500 | U30: 175500 | AA30: 87400 | AB30: 104800
A31: 25 | B31: 36100 | C31: 36400 | D31: 37200 | E31: 39000 | F31: 42200 | G31: 43600 | H31: 45700 | I31: 53500 | J31: 58500 | K31: 68500 | L31: 76800 | M31: 90000 | N31: 107900 | O31: 114000 | P31: 123300 | Q31: 136700 | R31: 144100 | S31: 152900 | T31: 162200 | U31: 180800 | AA31: 90000 | AB31: 107900
A32: 26 | B32: 37200 | C32: 37500 | D32: 38300 | E32: 40200 | F32: 43500 | G32: 44900 | H32: 47100 | I32: 55100 | J32: 60300 | K32: 70600 | L32: 79100 | M32: 92700 | N32: 111100 | O32: 117400 | P32: 127000 | Q32: 140800 | R32: 148400 | S32: 157500 | T32: 167100 | U32: 186200 | AA32: 92700 | AB32: 111100
A33: 27 | B33: 38300 | C33: 38600 | D33: 39400 | E33: 41400 | F33: 44800 | G33: 46200 | H33: 48500 | I33: 56800 | J33: 62100 | K33: 72700 | L33: 81500 | M33: 95500 | N33: 114400 | O33: 120900 | P33: 130800 | Q33: 145000 | R33: 152900 | S33: 162200 | T33: 172100 | U33: 191800 | AA33: 95500 | AB33: 114400
A34: 28 | B34: 39400 | C34: 39800 | D34: 40600 | E34: 42600 | F34: 46100 | G34: 47600 | H34: 50000 | I34: 58500 | J34: 64000 | K34: 74900 | L34: 83900 | M34: 98400 | N34: 117800 | O34: 124500 | P34: 134700 | Q34: 149400 | R34: 157500 | S34: 167100 | T34: 177300 | U34: 197600 | AA34: 98400 | AB34: 117800
A35: 29 | B35: 40600 | C35: 41000 | D35: 41800 | E35: 43900 | F35: 47500 | G35: 49000 | H35: 51500 | I35: 60300 | J35: 65900 | K35: 77100 | L35: 86400 | M35: 101400 | N35: 121300 | O35: 128200 | P35: 138700 | Q35: 153900 | R35: 162200 | S35: 172100 | T35: 182600 | U35: 203500 | AA35: 101400 | AB35: 121300
A36: 30 | B36: 41800 | C36: 42200 | D36: 43100 | E36: 45200 | F36: 48900 | G36: 50500 | H36: 53000 | I36: 62100 | J36: 67900 | K36: 79400 | L36: 89000 | M36: 104400 | N36: 124900 | O36: 132000 | P36: 142900 | Q36: 158500 | R36: 167100 | S36: 177300 | T36: 188100 | AA36: 104400 | AB36: 124900
A37: 31 | B37: 43100 | C37: 43500 | D37: 44400 | E37: 46600 | F37: 50400 | G37: 52000 | H37: 54600 | I37: 64000 | J37: 69900 | K37: 81800 | L37: 91700 | M37: 107500 | N37: 128600 | O37: 136000 | P37: 147200 | Q37: 163300 | R37: 172100 | S37: 182600 | T37: 193700 | AA37: 107500 | AB37: 128600
A38: 32 | B38: 44400 | C38: 44800 | D38: 45700 | E38: 48000 | F38: 51900 | G38: 53600 | H38: 56200 | I38: 65900 | J38: 72000 | K38: 84300 | L38: 94500 | M38: 110700 | N38: 132500 | O38: 140100 | P38: 151600 | Q38: 168200 | R38: 177300 | S38: 188100 | T38: 199500 | AA38: 110700 | AB38: 132500
A39: 33 | B39: 45700 | C39: 46100 | D39: 47100 | E39: 49400 | F39: 53500 | G39: 55200 | H39: 57900 | I39: 67900 | J39: 74200 | K39: 86800 | L39: 97300 | M39: 114000 | N39: 136500 | O39: 144300 | P39: 156100 | Q39: 173200 | R39: 182600 | S39: 193700 | AA39: 114000 | AB39: 136500
A40: 34 | B40: 47100 | C40: 47500 | D40: 48500 | E40: 50900 | F40: 55100 | G40: 56900 | H40: 59600 | I40: 69900 | J40: 76400 | K40: 89400 | L40: 100200 | M40: 117400 | N40: 140600 | O40: 148600 | P40: 160800 | Q40: 178400 | R40: 188100 | S40: 199500 | AA40: 117400 | AB40: 140600
A41: 35 | B41: 48500 | C41: 48900 | D41: 50000 | E41: 52400 | F41: 56800 | G41: 58600 | H41: 61400 | I41: 72000 | J41: 78700 | K41: 92100 | L41: 103200 | M41: 120900 | N41: 144800 | O41: 153100 | P41: 165600 | Q41: 183800 | R41: 193700 | AA41: 120900 | AB41: 144800
A42: 36 | B42: 50000 | C42: 50400 | D42: 51500 | E42: 54000 | F42: 58500 | G42: 60400 | H42: 63200 | I42: 74200 | J42: 81100 | K42: 94900 | L42: 106300 | M42: 124500 | N42: 149100 | O42: 157700 | P42: 170600 | Q42: 189300 | R42: 199500 | AA42: 124500 | AB42: 149100
A43: 37 | B43: 51500 | C43: 51900 | D43: 53000 | E43: 55600 | F43: 60300 | G43: 62200 | H43: 65100 | I43: 76400 | J43: 83500 | K43: 97700 | L43: 109500 | M43: 128200 | N43: 153600 | O43: 162400 | P43: 175700 | Q43: 195000 | AA43: 128200 | AB43: 153600
A44: 38 | B44: 53000 | C44: 53500 | D44: 54600 | E44: 57300 | F44: 62100 | G44: 64100 | H44: 67100 | I44: 78700 | J44: 86000 | K44: 100600 | L44: 112800 | M44: 132000 | N44: 158200 | O44: 167300 | P44: 181000 | AA44: 132000 | AB44: 158200
A45: 39 | B45: 54600 | C45: 55100 | D45: 56200 | E45: 59000 | F45: 64000 | G45: 66000 | H45: 69100 | I45: 81100 | J45: 88600 | K45: 103600 | L45: 116200 | M45: 136000 | N45: 162900 | O45: 172300 | P45: 186400 | AA45: 136000 | AB45: 162900
A46: 40 | B46: 56200 | C46: 56800 | D46: 57900 | E46: 60800 | F46: 65900 | G46: 68000 | H46: 71200 | I46: 83500 | J46: 91300 | K46: 106700 | L46: 119700 | M46: 140100 | N46: 167800 | O46: 177500 | P46: 192000 | AA46: 140100 | AB46: 167800

Sheet R02
B1: ='P3'!$D$1 -> jktdh; mPp ek/;fed fo|ky; 15tSM ¼Jhxaxkuxj½
B2: izi=
B3: =Profile!$A$1 -> o"kZ 2020&2021 ds fy, jsUt ds vuqlkj laosru dh jkf'k
C4: H.R.A. 10%
B7: =Profile!$O$1 -> BE 2020-21 | E7: =Profile!$O$2 -> RE 2019-20
B9: ='rrr 08'!$M$33 -> 4898000 | C9: *10% | E9: ='rrr 08'!$N$33 -> 4752800 | F9: *10%
B10: =B9*10% -> 489800 | E10: =E9*10% -> 475280

Sheet R03
B1: ='P3'!$D$1 -> jktdh; mPp ek/;fed fo|ky; 15tSM ¼Jhxaxkuxj½
B2: izi=
B3: =Profile!$A$1 -> o"kZ 2020&2021 ds fy, jsUt ds vuqlkj laosru dh jkf'k
C4: D.A. 6%
B6: =Profile!$O$1 -> BE 2020-21 | E6: =Profile!$O$2 -> RE 2019-20
B8: ='rrr 08'!$M$33 -> 4898000 | C8: 0 | E8: ='rrr 08'!$N$33 -> 4752800 | F8: 0.06
B9: =ROUND((B8*2*C8)/12,0) -> 0 | E9: =ROUND((E8*2*F8)/12,0) -> 47528

Sheet R04
B1: ='P3'!$D$1 -> jktdh; mPp ek/;fed fo|ky; 15tSM ¼Jhxaxkuxj½
B2: izi=
B3: =Profile!$A$1 -> o"kZ 2020&2021 ds fy, jsUt ds vuqlkj laosru dh jkf'k
C5: Bonas
B7: =Profile!$O$1 -> BE 2020-21 | E7: =Profile!$O$2 -> RE 2019-20
B9: =Profile!N34 -> 13548 | E9: =Profile!O34 -> 13548

Sheet R01
A1: ='P3'!$D$1 -> jktdh; mPp ek/;fed fo|ky; 15tSM ¼Jhxaxkuxj½
A2: izi=
A3: =Profile!$A$1 -> o"kZ 2020&2021 ds fy, jsUt ds vuqlkj laosru dh jkf'k
A4: Ø-la- | B4: in dk uke | C4: ,u-ih-,l-] lkekU;] fjDr | D4: xzsM is | E4: ,d ekg dh jkf'k | F4: 12 ekg dh jkf'k | G4: 3 izfr'kr osru o`f) | H4: x.kuk osru o`f)
A5: 1 | B5: =Profile!G6 -> iz/kkukpk;Z | C5: lkekU; | D5: =Profile!I6 -> 16 | E5: =Profile!J6 -> 98800 | F5: =E5*12 -> 1185600 | G5: =Profile!P6 -> 3000 | H5: =ROUNDUP((E5)*(3%),0) -> 2964
A6: 2 | B6: =Profile!G7 -> O;k[;krk | C6: lkekU; | D6: =Profile!I7 -> 13 | E6: =Profile!J7 -> 75600 | F6: =E6*12 -> 907200 | G6: =Profile!P7 -> 2300 | H6: =ROUNDUP((E6)*(3%),0) -> 2268
A7: 3 | B7: =Profile!G8 -> O;k[;krk | C7: ,uih,l | D7: =Profile!I8 -> 13 | E7: =Profile!J8 -> 73400 | F7: 880800 | G7: =Profile!P8 -> 2200 | H7: 2202
A8: 4 | B8: =Profile!G9 -> O;k[;krk | C8: fjDr | D8: =Profile!I9 -> 12 | E8: =Profile!J9 -> 69000 | F8: 828000 | G8: =Profile!P9 -> 2100 | H8: 2070
A9: 5 | B9: =Profile!G10 -> O;k[;krk | D9: =Profile!I10 -> 12 | E9: =Profile!J10 -> 0 | F9: =E9*12 -> 0 | G9: =Profile!P10 -> 0 | H9: 0
A10: 6 | B10: =Profile!G11 -> O;k[;krk | D10: =Profile!I11 -> 12 | E10: =Profile!J11 -> 0 | F10: 0 | G10: =Profile!P11 -> 0 | H10: 0
A11: 7 | B11: =Profile!G12 -> O;k[;krk | D11: =Profile!I12 -> 12 | E11: =Profile!J12 -> 0 | F11: 0 | G11: =Profile!P12 -> 0 | H11: 0
A12: 8 | B12: =Profile!G13 -> ofj"B v/;kid | D12: =Profile!I13 -> 11 | E12: =Profile!J13 -> 0 | F12: 0 | G12: =Profile!P13 -> 0 | H12: 0
A13: 9 | B13: =Profile!G14 -> ofj"B v/;kid | D13: =Profile!I14 -> 11 | E13: =Profile!J14 -> 0 | F13: 0 | G13: =Profile!P14 -> 0 | H13: 0
A14: 10 | B14: =Profile!G15 -> ofj"B v/;kid | D14: =Profile!I15 -> 11 | E14: =Profile!J15 -> 0 | F14: 0 | G14: =Profile!P15 -> 0 | H14: 0
A15: 11 | B15: =Profile!G16 -> ofj"B v/;kid | D15: =Profile!I16 -> 11 | E15: =Profile!J16 -> 0 | F15: =E15*12 -> 0 | G15: =Profile!P16 -> 0
A16: 12 | B16: =Profile!G17 -> ofj"B v/;kid | D16: =Profile!I17 -> 11 | E16: =Profile!J17 -> 0 | F16: 0 | G16: =Profile!P17 -> 0
A17: 13 | B17: =Profile!G18 -> ofj"B v/;kid | D17: =Profile!I18 -> 11 | E17: =Profile!J18 -> 0 | F17: 0 | G17: =Profile!P18 -> 0
A18: 14 | B18: =Profile!G19 -> v/;kid ysoy&k | D18: =Profile!I19 -> 12 | E18: =Profile!J19 -> 61300 | F18: 735600 | G18: =Profile!P19 -> 1800
A19: 15 | B19: =Profile!G20 -> v/;kid | D19: =Profile!I20 -> 10 | E19: =Profile!J20 -> 0 | F19: 0 | G19: =Profile!P20 -> 0
A20: 16 | B20: =Profile!G21 -> v/;kid | D20: =Profile!I21 -> 10 | E20: =Profile!J21 -> 0 | F20: 0 | G20: =Profile!P21 -> 0
A21: 17 | B21: =Profile!G22 -> dk;kZy; lgk;d | D21: =Profile!I22 -> 10 | E21: =Profile!J22 -> 0 | F21: 0 | G21: =Profile!P22 -> 0
A22: 18 | B22: =Profile!G23 -> ofj"B fyfid | D22: =Profile!I23 -> 8 | E22: =Profile!J23 -> 0 | F22: 0 | G22: =Profile!P23 -> 0
A23: 19 | B23: =Profile!G24 -> dfu"B lgk;d | D23: =Profile!I24 -> 5 | E23: =Profile!J24 -> 22000 | F23: 264000 | G23: =Profile!P24 -> 700 | H23: 660
A24: 20 | B24: =Profile!G25 -> lgk;d deZpkjh | D24: =Profile!I25 -> 1 | E24: =Profile!J25 -> 0 | F24: 0 | G24: =Profile!P25 -> 0 | H24: 0
A25: 21 | B25: =Profile!G26 -> lgk;d deZpkjh | D25: =Profile!I26 -> 1 | E25: =Profile!J26 -> 0 | F25: 0 | G25: =Profile!P26 -> 0 | H25: 0
C28: dqy | E28: =SUM(E5:E27) -> 400100 | F28: =SUM(F5:F27) -> 4801200 | G28: =SUM(G5:G27) -> 12100
C30: lkekU; | E30: =E27+E24+E5+E26+E6+E7 -> 247800 | F30: 2973600 | G30: =G27+G24+G5+G26 -> 3000
B31: lk0osru o`f) 8 ekg | E31: =G30*8 -> 24000
C32: ,uih,l | E32: =E8 -> 69000 | F32: 828000 | G32: =G25+G23+G12+G8+G7+G6 -> 7300
B33: lk0osru o`f) 8 ekg ,uih,l | E33: =G32*8 -> 58400
C34: dqy | E34: =E30+E32 -> 316800 | F34: 3801600 | G34: =G30+G32 -> 10300
B35: lk0osru o`f) 8 ekg dqy | E35: =E33+E31 -> 82400
C37: egk;ksx | E37: =F34+E35 -> 3884000

Sheet L-1-2
B1: =[3]Profile!A2 -> dk;kZy; %& | C1: =[3]Profile!D2 -> jktdh; mPp ek/;fed fo|ky; 15tSM ¼Jhxaxkuxj½
B2: v/;kid ysoy&1 o ysoy&2 Lohd`r] dk;Zjr o fjDr inks dk fooj.k
A3: en 2202 ukWu Iyku | C3: o"kZ | D3: =[3]Profile!O2 -> RE 2019-2020 | E3: o vkxkeh o"kZ | G3: =[3]Profile!N1 -> BE 2020-2021
A4: ys[kk 'kh"kZd ¼foLr`r 'kh"kZ½ | B4: en | C4: in uke | D4: fo"k; | E4: Lohd`r | F4: dk;Zjr | G4: fjDr | H4: Lohd`r ;ksx
A5: vjktif=r | B5: 2202-02-109-27-01 | C5: v/;kid ysoy&1 | D5: & | E5: 2 | F5: 2 | G5: =E5-F5 -> 0 | H5: =E5+E7+E6 -> 3
A6: vjktif=r | B6: 2202-02-109-01-00 | C6: v/;kid ysoy&1 | D6: & | E6: 1 | F6: 1 | G6: =E6-F6 -> 0
A7: vjktif=r | C7: v/;kid ysoy&1 | D7: & | F7: 0 | G7: =E7-F7 -> 0
A8: vjktif=r | B8: 2202-02-109-27-01 | C8: v/;kid ysoy&2 | D8: vaxzsth | E8: 1 | F8: 0 | G8: =E8-F8 -> 1 | H8: =E8+E9+E10+E11+E12+E13 -> 3
A9: vjktif=r | B9: 2202-02-109-27-01 | D9: fgUnh | E9: 1 | F9: 1 | G9: 0
A10: vjktif=r | D10: xf.kr@foKku | E10: 0 | F10: 0 | G10: 0
A11: vjktif=r | B11: 2202-02-109-27-01 | D11: lkekftd foKku | E11: 1 | F11: 1 | G11: 0
A12: vjktif=r | D12: iatkch | E12: 0 | F12: 0 | G12: 0
A13: vjktif=r | D13: laLd`r | E13: 0 | F13: 0 | G13: 0
A14: dqy | E14: =E5+E7+E8+E9+E10+E11+E12+E13+E6 -> 6 | F14: =F5+F7+F8+F9+F10+F11+F12+F13+F6 -> 5 | G14: 1 | H14: 6

Sheet PLAN 01
B1: =[3]Profile!A2 -> dk;kZy; %& | C1: =[3]Profile!D2 -> jktdh; mPp ek/;fed fo|ky; 15tSM ¼Jhxaxkuxj½
B2: v/;kid ysoy&1 o ysoy&2 Lohd`r] dk;Zjr o fjDr inks dk fooj.k
A3: en 2202 ukWu Iyku | C3: o"kZ | D3: =[3]Profile!O2 -> RE 2019-2020 | E3: o vkxkeh o"kZ | G3: =[3]Profile!N1 -> BE 2020-2021
A4: ys[kk 'kh"kZd ¼foLr`r 'kh"kZ½ | B4: en | C4: in uke | D4: fo"k; | E4: Lohd`r | F4: dk;Zjr | G4: fjDr | H4: Lohd`r ;ksx
A5: vjktif=r | C5: v/;kid ysoy&1 | D5: & | E5: 0 | F5: 0 | G5: =E5-F5 -> 0 | H5: =E5+E7+E6 -> 1
A6: vjktif=r | B6: 2202-02-109-01-00 | C6: v/;kid ysoy&1 | D6: & | E6: 1 | F6: 1 | G6: =E6-F6 -> 0
A7: vjktif=r | C7: v/;kid ysoy&1 | D7: & | F7: 0 | G7: =E7-F7 -> 0
A8: vjktif=r | C8: v/;kid ysoy&2 | D8: vaxzsth | E8: 0 | F8: 0 | G8: =E8-F8 -> 0 | H8: =E8+E9+E10+E11+E12+E13 -> 0
A9: vjktif=r | D9: fgUnh | E9: 0 | F9: 0 | G9: 0
A10: vjktif=r | D10: xf.kr@foKku | E10: 0 | F10: 0 | G10: 0
A11: vjktif=r | D11: lkekftd foKku | E11: 0 | F11: 0 | G11: 0
A12: vjktif=r | D12: iatkch | E12: 0 | F12: 0 | G12: 0
A13: vjktif=r | D13: laLd`r | E13: 0 | F13: 0 | G13: 0
A14: dqy | E14: =E5+E7+E8+E9+E10+E11+E12+E13+E6 -> 1 | F14: =F5+F7+F8+F9+F10+F11+F12+F13+F6 -> 1 | G14: 0 | H14: 1
